bitfinex-derivatives/quotes_ETHF0:USTF0_20250102
["timestamp","ask_amount","ask_price","bid_price","bid_amount"]
[1735778100388,0.29542,3392.0,3391.8,3.50322]
[1735778100581,0.2954,3392.2,3392.0,0.2954]
[1735778100781,0.2954,3392.2,3391.8,3.2078]
[1735778100984,8.18896588,3392.4,3392.2,0.29539]
[1735778101187,7.89358588,3392.4,3391.8,3.2078]
[1735778101385,7.89358588,3392.4,3392.3,0.29538]
[1735778101687,7.89358588,3392.4,3391.8,3.94638]
[1735778101688,7.89358588,3392.4,3392.2,0.29539]
[1735778102086,8.18896588,3392.4,3391.8,3.2078]
[1735778102379,7.89358588,3392.6,3391.8,3.2078]
[1735778102586,0.29542,3392.0,3391.9,0.29542]
[1735778102987,3.2078,3392.3,3391.8,3.2078]
[1735778103294,7.89358588,3392.6,3392.3,0.29538]
[1735778103590,0.29537,3392.5,3392.2,0.29539]
[1735778103789,0.29537,3392.5,3391.8,3.2078]
[1735778103790,0.29539,3392.3,3392.1,0.2954]
[1735778103995,0.2954,3392.1,3391.9,0.29542]
[1735778104288,0.29541,3392.0,3391.8,3.2078]
[1735778104587,0.29543,3391.8,3391.3,0.29547]
[1735778104890,0.29543,3391.8,3391.0,0.2955]
[1735778104891,0.29549,3391.1,3391.0,0.2955]
[1735778105186,0.29555,3390.4,3390.2,0.29556]
[1735778105485,0.29555,3390.4,3389.4,2.84500161]
[1735778105486,0.2956,3389.9,3389.6,3.50341]
[1735778105786,2.84500161,3389.9,3389.1,3.2078]
[1735778106280,6.44093093,3390.0,3389.0,1.327]
[1735778106484,0.29559,3389.9,3389.0,1.62267]
[1735778106685,3.2078,3390.0,3389.3,3.2078]
[1735778106882,2.06578,3390.9,3389.3,3.2078]
[1735778106883,3.2078,3390.6,3389.8,3.2078]
[1735778107193,0.29555,3390.5,3390.2,0.29556]
[1735778107380,1.0655,3390.9,3390.3,0.29555]
[1735778107891,1.0655,3390.9,3390.5,0.29554]
[1735778108087,0.29553,3390.7,3390.4,0.29555]
[1735778108490,0.29553,3390.7,3390.3,0.29556]
[1735778108692,0.29553,3390.7,3389.9,1.327]
[1735778108991,0.29552,3390.8,3389.9,1.327]
[1735778109186,0.29552,3390.8,3390.5,0.29554]
[1735778109385,1.0861,3391.0,3390.2,3.2078]
[1735778109593,3.2078,3391.5,3391.4,0.29546]
[1735778109788,1.1633,3391.7,3391.4,40.8]
[1735778109984,11.10138588,3392.3,3391.5,3.2078]
[1735778110189,7.89358588,3392.3,3391.9,3.2078]
[1735778110488,9.2631663,3392.8,3392.7,0.29535]
[1735778112491,9.2631663,3392.8,3392.6,3.2078]
[1735778112492,3.50304,3394.0,3393.7,0.29526]
[1735778112696,3.50304,3394.0,3393.4,3.2078]
[1735778112697,3.2078,3394.0,3393.4,3.2078]
[1735778113194,3.2078,3394.0,3393.9,0.29525]
[1735778113589,0.29519,3394.6,3394.2,0.29521]
[1735778113898,7.89358588,3394.7,3394.2,3.2078]
[1735778114194,7.89358588,3394.7,3394.6,3.50298]
[1735778114493,3.2078,3395.3,3394.6,3.2078]
[1735778114892,3.2078,3395.3,3395.1,0.29514]
[1735778115695,3.2078,3395.3,3395.0,1.327]
[1735778115894,3.2078,3395.3,3395.1,0.29514]
[1735778116096,3.2078,3395.3,3395.2,0.29513]
[1735778116292,0.00592846,3395.5,3395.1,3.2078]
[1735778116495,0.00592846,3395.5,3395.4,0.29512]
[1735778116694,0.00592846,3395.5,3395.1,3.2078]
[1735778116695,7.89358588,3396.5,3395.1,13.0938]
[1735778116999,7.89358588,3396.5,3396.0,0.29506]
[1735778117196,7.89358588,3396.5,3396.1,1.62205]
[1735778117496,7.89358588,3396.5,3396.3,3.2078]
[1735778117692,7.89358588,3396.5,3396.4,0.29503]
[1735778117994,1.00793494,3396.6,3396.3,3.50283]
[1735778118202,1.00793494,3396.6,3396.3,3.2078]
[1735778118799,1.00793494,3396.6,3396.4,1.326]
[1735778119195,1.00793494,3396.6,3396.5,0.29502]
[1735778120001,1.00793494,3396.6,3396.4,1.326]
[1735778120193,1.00793494,3396.6,3396.4,1.62102]
[1735778120389,1.00793494,3396.6,3396.4,1.326]
[1735778120589,1.00793494,3396.6,3396.5,0.29502]
[1735778120998,1.00793494,3396.6,3396.4,1.326]
[1735778122692,1.00793494,3396.6,3396.3,3.2078]
[1735778122894,0.29503,3396.4,3396.3,3.2078]
[1735778123094,1.00793494,3396.6,3396.1,1.326]
[1735778123502,0.29506,3396.1,3395.9,4.5338]
[1735778123697,1.00793494,3396.6,3395.4,3.2078]
[1735778123903,1.00793494,3396.6,3396.2,3.2078]
[1735778124101,1.00793494,3396.6,3396.4,0.29503]
[1735778124305,1.00793494,3396.6,3396.4,0.29502]
[1735778124605,1.30295494,3396.6,3396.3,1.326]
[1735778124795,0.29504,3396.3,3396.2,3.2078]
[1735778124997,3.23313093,3396.5,3395.3,3.2078]
[1735778125196,1.1143,3396.2,3395.7,3.2078]
[1735778125701,1.00793494,3396.6,3396.1,3.2078]
[1735778125902,1.00793494,3396.6,3396.2,1.62104]
[1735778126099,1.00793494,3396.6,3396.2,1.326]
[1735778126100,1.30295494,3396.6,3396.2,1.326]
[1735778126303,1.00793494,3396.6,3396.2,1.326]
[1735778126500,1.30294494,3396.6,3396.2,1.326]
[1735778126704,1.00793494,3396.6,3396.2,1.326]
[1735778126902,1.00793494,3396.6,3396.5,3.50282]
[1735778127702,1.00793494,3396.6,3396.5,3.2078]
[1735778127903,1.00793494,3396.6,3396.5,3.50282]
[1735778128108,1.00793494,3396.6,3396.5,3.2078]
[1735778128308,1.00793494,3396.6,3396.5,3.50282]
[1735778129201,1.00793494,3396.6,3396.5,8.50282]
[1735778130410,1.00793494,3396.6,3396.5,3.50282]
[1735778131109,1.00793494,3396.6,3396.5,4.82782]
[1735778133207,1.00793494,3396.6,3396.5,3.2078]
[1735778133402,1.00793494,3396.6,3396.1,3.2078]
[1735778133807,3.2078,3396.4,3395.7,1.331]
[1735778134314,0.29505,3396.2,3395.9,0.29507]
[1735778134506,1.1732,3396.3,3395.7,1.62609]
[1735778134709,0.29506,3396.1,3395.8,0.29509]
[1735778134908,6.44093093,3396.0,3395.2,3.2078]
[1735778135217,0.29511,3395.5,3395.2,0.29514]
[1735778135410,4.39123093,3396.0,3395.1,1.62614]
[1735778135613,3.2078,3395.6,3395.1,1.62614]
[1735778135807,4.39123093,3396.0,3394.8,3.2078]
[1735778136017,3.2078,3395.8,3394.8,3.2078]
[1735778136312,3.2078,3395.4,3394.8,4.5388]
[1735778136519,0.29514,3395.2,3394.9,0.29516]
[1735778136718,1.0998,3395.3,3394.8,3.2078]
[1735778136917,4.39123093,3396.0,3394.8,3.2078]
[1735778136918,0.2951,3395.7,3395.3,0.29513]
[1735778137320,0.2951,3395.6,3395.3,0.29513]
[1735778137513,1.1581,3396.0,3394.8,3.2078]
[1735778137715,0.7377,3395.9,3394.8,3.2078]
[1735778138012,4.39123093,3396.0,3394.9,1.331]
[1735778138209,0.29511,3395.5,3394.8,3.2078]
[1735778138414,4.39123093,3396.0,3394.9,1.331]
[1735778138415,0.29515,3395.0,3394.9,1.331]
[1735778138817,0.29517,3394.8,3394.7,1.331]
[1735778139121,0.73776,3395.6,3394.7,1.331]
[1735778139122,0.29517,3394.9,3394.7,1.331]
[1735778139324,0.29516,3394.9,3394.7,1.62617]
[1735778139517,0.29515,3395.1,3394.8,0.29517]
[1735778139819,5.12891093,3396.0,3394.7,1.331]
[1735778140021,0.29514,3395.2,3394.9,0.29516]
[1735778140217,0.29514,3395.2,3394.7,1.331]
[1735778140218,1.1581,3396.0,3395.1,3.2078]
[1735778140416,1.45317,3396.0,3395.8,0.29508]
[1735778140611,1.0998,3396.2,3396.1,0.29506]
[1735778140818,1.46824,3396.3,3396.2,0.29505]
[1735778140819,1.1732,3396.3,3396.2,0.29505]
[1735778141021,1.46824,3396.3,3396.0,0.29507]
[1735778141218,0.29505,3396.2,3395.9,3.2078]
[1735778141413,0.29505,3396.2,3396.0,0.29506]
[1735778141714,1.1732,3396.3,3395.9,3.2078]
[1735778141909,1.1732,3396.3,3395.3,4.886]
[1735778141910,0.29507,3396.0,3395.8,0.29508]
[1735778142120,0.29505,3396.2,3396.0,0.29506]
[1735778142318,1.1732,3396.3,3395.9,4.5388]
[1735778142319,0.29506,3396.1,3395.9,4.5388]
[1735778142519,0.29507,3396.0,3395.9,1.331]
[1735778142923,0.29506,3396.1,3395.9,1.331]
[1735778143122,0.29507,3396.0,3395.9,1.331]
[1735778143515,1.1732,3396.3,3395.9,1.331]
[1735778143716,0.29506,3396.1,3395.9,4.83387]
[1735778143917,1.1732,3396.3,3395.9,4.5388]
[1735778144123,1.1732,3396.3,3395.9,1.331]
[1735778144426,0.29506,3396.1,3395.9,1.331]
[1735778144620,0.29505,3396.2,3396.0,0.29506]
[1735778145617,0.29505,3396.2,3395.9,1.62607]
[1735778145816,5.0655,3396.8,3395.9,1.331]
[1735778146215,1.8577,3396.8,3395.9,1.331]
[1735778146521,0.29507,3396.0,3395.9,1.331]
[1735778147119,1.74548494,3396.6,3395.5,0.29511]
[1735778147327,1.74548494,3396.6,3395.8,3.2078]
[1735778147523,0.29515,3395.0,3394.3,4.886]
[1735778147728,3.2078,3395.3,3394.1,4.886]
[1735778147926,3.2078,3394.8,3394.0,4.5388]
[1735778148117,0.29523,3394.2,3394.0,3.2078]
[1735778148318,0.29522,3394.3,3394.0,3.2078]
[1735778148524,1.131,3394.7,3394.0,3.2078]
[1735778148826,1.158,3395.2,3394.4,3.2078]
[1735778149017,1.80754,3395.7,3394.4,3.2078]
[1735778149018,1.1809,3395.6,3394.9,3.2078]
[1735778149220,1.1809,3395.6,3395.1,0.29514]
[1735778149221,0.29512,3395.4,3395.1,0.29514]
[1735778149423,1.1809,3395.6,3395.0,1.331]
[1735778149629,0.29511,3395.5,3395.0,42.131]
[1735778149824,1.1809,3395.6,3395.3,3.2078]
[1735778150133,0.29512,3395.4,3395.1,0.29514]
[1735778150430,0.29512,3395.4,3395.2,1.331]
[1735778150727,0.29509,3395.8,3395.5,0.2951]
[1735778151033,0.29509,3395.7,3395.5,0.2951]
[1735778151534,0.29511,3395.6,3395.3,3.50292]
[1735778152628,0.29512,3395.4,3395.3,3.2078]
[1735778154424,8.2078,3395.4,3394.3,3.2078]
[1735778154723,0.2952,3394.4,3394.3,4.5388]
[1735778156025,0.29527,3393.7,3393.6,3.2078]
[1735778157925,1.168,3394.2,3393.0,1.332]
[1735778157926,0.29532,3393.1,3393.0,1.332]
[1735778158124,0.29533,3393.0,3392.9,1.332]
[1735778158326,3.2078,3393.9,3392.9,1.332]
[1735778158626,0.29528,3393.6,3393.3,0.2953]
[1735778158830,3.2078,3393.9,3393.3,0.2953]
[1735778158831,0.29529,3393.5,3393.3,0.2953]
[1735778159034,3.2078,3393.9,3393.3,0.29529]
[1735778159232,0.29528,3393.5,3393.3,0.2953]
[1735778159429,3.2078,3393.9,3393.4,1.332]
[1735778159633,1.90607,3394.2,3393.4,1.62729]
[1735778159634,1.168,3394.2,3393.4,1.62729]
[1735778159932,1.168,3394.2,3393.5,1.332]
[1735778159933,0.29527,3393.6,3393.5,1.332]
[1735778160432,1.168,3394.2,3393.8,0.29525]
[1735778160629,0.29523,3394.1,3393.7,0.29526]
[1735778160828,1.168,3394.2,3393.6,3.2078]
[1735778161228,1.168,3394.2,3393.7,1.332]
[1735778161426,0.29526,3393.8,3393.7,1.332]
[1735778162024,0.73812,3394.0,3393.1,3.2078]
[1735778162227,0.29528,3393.5,3393.4,1.319]
[1735778162929,0.29528,3393.5,3393.2,0.29531]
[1735778163131,0.2953,3393.4,3393.2,0.29531]
[1735778163334,0.29529,3393.5,3393.3,0.2953]
[1735778163534,1.1842,3393.9,3393.1,4.5268]
[1735778163727,0.29531,3393.2,3393.1,3.50311]
[1735778163932,0.29534,3392.8,3392.7,4.5268]
[1735778164834,3.2078,3393.0,3392.1,3.2078]
[1735778165034,1.1294,3393.1,3391.7,3.2078]
[1735778165035,0.29543,3391.8,3391.7,3.2078]
[1735778165236,3.2078,3392.6,3391.7,3.2078]
[1735778165237,3.94622,3392.6,3391.7,3.2078]
[1735778165537,0.29543,3391.8,3391.7,3.2078]
[1735778165733,3.2078,3392.2,3391.3,1.319]
[1735778165933,5.0,3392.6,3390.5,21.19086682]
[1735778165934,0.29547,3391.3,3390.8,7.67123341]
[1735778166130,0.73861,3391.7,3390.8,3.2078]
[1735778166339,1.1294,3391.6,3390.8,3.2078]
[1735778166637,6.44093093,3390.9,3389.7,6.69515011]
[1735778166936,0.2956,3389.9,3389.7,6.69515011]
[1735778167233,0.2956,3389.9,3389.5,0.2330888]
[1735778167234,0.29562,3389.6,3389.5,0.2330888]
[1735778167429,0.29562,3389.6,3389.0,8.698]
[1735778167430,0.29566,3389.2,3389.0,8.698]
[1735778167636,0.29567,3389.0,3388.9,3.2078]
[1735778167841,3.2078,3389.2,3388.9,0.23021]
[1735778168038,3.2078,3389.2,3388.4,1.32]
[1735778168246,3.2078,3388.8,3388.4,1.32]
[1735778168444,0.29572,3388.5,3388.4,1.32]
[1735778168739,3.2078,3388.8,3387.9,1.32]
[1735778169040,3.2078,3388.4,3387.7,1.32]
[1735778169243,0.29577,3388.0,3387.7,1.32]
[1735778169446,3.2078,3388.0,3387.0,3.2078]
[1735778169746,3.23313093,3388.4,3387.2,3.2078]
[1735778169747,3.2078,3388.1,3387.2,3.2078]
[1735778169935,3.23313093,3388.4,3387.8,0.29578]
[1735778169936,0.29573,3388.4,3387.8,0.29578]
[1735778170135,3.2078,3388.7,3387.8,1.32]
[1735778170338,3.2078,3388.7,3387.6,3.2078]
[1735778170541,0.29572,3388.6,3388.0,0.29576]
[1735778170736,3.2078,3388.7,3387.8,0.29577]
[1735778170737,0.29573,3388.5,3387.8,0.29577]
[1735778171041,3.2078,3388.7,3387.8,1.32]
[1735778171243,3.2078,3389.1,3388.1,0.29575]
[1735778171540,3.2078,3389.1,3388.0,3.2078]
[1735778171541,0.29568,3388.9,3388.0,3.2078]
[1735778171741,3.50347,3389.1,3388.0,3.2078]
[1735778171943,3.2078,3389.1,3388.8,0.29569]
[1735778172239,3.2078,3389.1,3388.7,0.2957]
[1735778172439,3.2078,3389.1,3388.6,1.32]
[1735778172835,3.2078,3389.1,3388.8,0.29569]
[1735778173035,3.2078,3389.1,3388.6,1.32]
[1735778173235,3.2078,3389.1,3388.7,0.2957]
[1735778173436,3.2078,3389.5,3388.6,1.32]
[1735778173632,3.2078,3389.9,3388.8,3.2078]
[1735778173837,3.2078,3389.9,3388.9,4.886]
[1735778174048,3.2078,3389.5,3389.0,1.321]
[1735778174336,3.2078,3389.5,3389.1,40.8]
[1735778175237,0.29564,3389.4,3389.1,40.8]
[1735778175436,3.2078,3389.5,3389.1,41.09566]
[1735778175639,3.2078,3389.5,3389.2,0.29566]
[1735778175834,3.2078,3389.5,3389.1,40.8]
[1735778176147,3.2078,3389.5,3388.9,0.29568]
[1735778176343,3.2078,3389.5,3388.4,4.5288]
[1735778176539,0.29564,3389.4,3388.8,0.29569]
[1735778176742,3.2078,3389.5,3388.7,0.2957]
[1735778176942,3.2078,3389.5,3388.5,40.8]
[1735778177144,0.29564,3389.4,3388.8,0.29569]
[1735778177344,3.2078,3389.5,3388.5,40.8]
[1735778177546,3.2078,3389.5,3388.4,4.5288]
[1735778177547,3.2078,3389.1,3388.4,3.2078]
[1735778177851,0.29573,3388.4,3387.8,0.29577]
[1735778178145,6.44093093,3388.7,3387.6,4.5288]
[1735778178343,3.2078,3388.3,3387.6,1.321]
[1735778178544,3.2078,3387.9,3387.2,3.2078]
[1735778178739,0.29578,3387.8,3387.2,3.2078]
[1735778178940,0.29578,3387.8,3387.3,0.29582]
[1735778179148,0.29579,3387.7,3387.2,3.50363]
[1735778179348,0.2958,3387.6,3387.2,3.2078]
[1735778179556,0.29578,3387.8,3387.3,0.29582]
[1735778179848,0.29578,3387.8,3386.3,8.12576]
[1735778179849,3.2078,3387.5,3386.6,4.5288]
[1735778180151,0.29578,3387.8,3386.6,4.5288]
[1735778180355,4.3597,3388.0,3387.7,0.29578]
[1735778180556,4.3597,3388.0,3387.9,0.29577]
[1735778181052,3.2078,3388.0,3387.5,4.5288]
[1735778181245,1.1637,3388.1,3387.5,4.5288]
[1735778181447,1.1637,3388.1,3387.5,3.2078]
[1735778181448,0.29577,3388.0,3387.5,3.2078]
[1735778181659,4.39683093,3388.1,3387.1,4.5288]
[1735778181861,4.39683093,3388.1,3387.9,0.29577]
[1735778182068,4.39683093,3388.1,3387.6,0.29579]
[1735778182069,0.29576,3388.0,3387.6,0.29579]
[1735778182262,4.39683093,3388.1,3387.1,4.5288]
[1735778182464,4.2891,3388.2,3388.1,0.29575]
[1735778182668,4.2891,3388.2,3388.0,0.29576]
[1735778182669,3.2078,3388.2,3388.0,0.29576]
[1735778183161,3.2078,3388.2,3388.1,0.29575]
[1735778183965,3.2078,3388.2,3387.5,3.2078]
[1735778184367,3.2078,3388.2,3388.1,0.29575]
[1735778186464,3.2078,3388.2,3387.5,3.2078]
[1735778186666,3.23313093,3388.1,3387.4,0.29581]
[1735778186862,0.29582,3387.4,3387.1,3.50364]
[1735778187069,3.23313093,3387.6,3387.1,3.2078]
[1735778187269,0.29582,3387.3,3387.0,0.29585]
[1735778187669,3.2078,3387.4,3387.2,0.29582]
[1735778187967,3.2078,3387.4,3387.3,0.29582]
[1735778188364,3.3751,3388.0,3386.6,3.9475]
[1735778188365,3.2078,3387.9,3386.6,3.9475]
[1735778188664,3.2078,3387.9,3387.6,0.2958]
[1735778188665,3.50358,3387.9,3387.6,0.2958]
[1735778188866,3.2078,3387.9,3387.7,0.29578]
[1735778189172,1.1723,3388.0,3387.5,3.2078]
[1735778189372,1.1723,3388.0,3387.9,0.29577]
[1735778190173,3.2078,3388.3,3387.7,3.2078]
[1735778190474,3.2078,3389.0,3388.2,0.73937]
[1735778190672,3.2078,3389.0,3387.5,4.886]
[1735778190673,3.2078,3389.0,3388.9,0.29568]
[1735778190868,3.50342,3389.7,3389.4,0.29564]
[1735778191063,3.50342,3389.7,3388.9,3.2078]
[1735778191064,3.2078,3389.7,3388.9,3.2078]
[1735778191269,3.2078,3389.7,3389.5,0.29563]
[1735778191768,3.2078,3389.7,3388.9,3.2078]
[1735778191969,3.2078,3389.7,3389.6,0.29562]
[1735778192563,3.2078,3389.7,3389.4,1.364]
[1735778192564,3.2078,3390.3,3389.5,3.2078]
[1735778192771,0.29555,3390.5,3390.2,0.29557]
[1735778192968,3.2078,3390.8,3389.7,0.73904]
[1735778193274,6.62243093,3391.1,3389.9,3.2078]
[1735778193668,0.29553,3390.7,3390.4,0.29555]
[1735778193870,6.62243093,3391.1,3390.3,3.2078]
[1735778193871,2.2785,3391.1,3391.0,0.2955]
[1735778194077,2.2785,3391.1,3390.3,3.9467]
[1735778194078,3.2078,3391.2,3390.3,3.9467]
[1735778194268,3.2078,3391.2,3391.0,0.2955]
[1735778194475,3.2078,3391.2,3390.3,3.2078]
[1735778194778,0.2955,3391.1,3390.8,0.29551]
[1735778194972,3.2078,3391.2,3390.3,4.5718]
[1735778195277,0.2955,3391.1,3390.8,0.29551]
[1735778195479,3.50329,3391.2,3390.9,0.2955]
[1735778195677,3.2078,3391.2,3390.3,4.5718]
[1735778196180,3.50329,3391.2,3390.9,0.2955]
[1735778196381,3.2078,3391.2,3391.1,0.29549]
[1735778196678,0.29547,3391.4,3391.1,0.29549]
[1735778196881,1.1713,3391.5,3390.7,3.2078]
[1735778197078,1.1713,3391.5,3391.4,0.29547]
[1735778197572,1.46676,3391.5,3391.2,0.29548]
[1735778197783,1.46676,3391.5,3390.7,3.2078]
[1735778197784,1.1713,3391.5,3391.0,0.29549]
[1735778198076,6.1713,3391.5,3390.7,3.2078]
[1735778198274,0.29551,3391.0,3390.7,0.29553]
[1735778198671,1.1713,3391.5,3390.2,3.2078]
[1735778198879,1.1713,3391.5,3391.3,0.29547]
[1735778199074,1.1713,3391.5,3390.6,3.2078]
[1735778199276,1.1713,3391.5,3390.1,6.363]
[1735778199277,3.2078,3391.6,3391.5,0.29546]
[1735778199576,3.2078,3392.4,3391.4,3.94647]
[1735778199769,3.2078,3392.4,3391.4,3.2078]
[1735778199973,0.2954,3392.2,3391.4,3.2078]
[1735778200174,3.2078,3392.0,3391.4,3.2078]
[1735778200373,1.41699,3392.3,3391.5,0.29546]
[1735778200571,1.1216,3392.3,3391.4,3.2078]
[1735778200771,6.1216,3392.3,3391.4,3.2078]
[1735778200971,1.1216,3392.3,3391.4,3.2078]
[1735778201174,0.29541,3392.1,3391.7,0.29544]
[1735778201372,1.1216,3392.3,3391.9,0.29541]
[1735778201373,1.41699,3392.3,3391.9,0.29541]
[1735778201681,1.1216,3392.3,3391.9,0.29542]
[1735778201985,1.1216,3392.3,3391.4,3.2078]
[1735778202170,0.2954,3392.2,3391.8,0.29542]
[1735778202371,0.29542,3392.0,3391.9,0.00187788]
[1735778202581,0.2954,3392.2,3391.9,0.00187788]
[1735778202881,0.29541,3392.0,3391.9,0.00187788]
[1735778203068,3.2078,3392.4,3391.9,0.00187788]
[1735778203272,3.2078,3392.4,3392.1,0.2954]
[1735778203476,3.2078,3392.4,3392.0,0.29541]
[1735778203477,0.29539,3392.3,3392.0,0.29541]
[1735778203982,3.2078,3392.4,3391.9,0.00187788]
[1735778204279,0.29546,3391.5,3391.4,3.2078]
[1735778204577,3.2078,3391.5,3390.6,3.2078]
[1735778204884,2.228,3391.4,3390.6,3.2078]
[1735778205079,2.228,3391.4,3391.3,0.29547]
[1735778205279,2.228,3391.4,3391.0,3.2078]
[1735778205280,0.29538,3392.4,3391.1,0.73873]
[1735778205580,0.29541,3392.0,3391.8,0.29543]
[1735778205782,0.29541,3392.1,3391.8,0.29543]
[1735778205982,0.29542,3391.9,3391.7,0.29544]
[1735778206280,6.44093093,3392.5,3391.4,1.363]
[1735778206782,11.44093093,3392.5,3391.8,0.29543]
[1735778206975,0.2954,3392.2,3391.5,0.29546]
[1735778207175,6.44093093,3392.5,3391.2,3.2078]
[1735778207176,3.23313093,3391.9,3391.2,3.2078]
[1735778207482,3.2078,3392.1,3391.5,0.29546]
[1735778207682,0.29544,3391.8,3391.6,0.29545]
[1735778207884,0.29543,3391.9,3391.2,3.2078]
[1735778208180,0.29544,3391.8,3391.6,0.29545]
[1735778208386,3.2078,3392.1,3391.1,1.363]
[1735778208684,0.29541,3392.0,3391.3,0.29547]
[1735778208875,0.29541,3392.0,3390.8,3.2078]
[1735778208876,3.2078,3391.7,3390.8,3.2078]
[1735778209078,0.29547,3391.4,3391.2,0.29548]
[1735778209283,0.29546,3391.5,3391.3,0.29547]
[1735778209580,1.1688,3391.6,3390.8,3.2078]
[1735778209781,0.29546,3391.5,3391.1,0.29548]
[1735778209978,1.1688,3391.6,3391.1,0.29548]
[1735778209979,0.29547,3391.4,3391.1,0.29548]
[1735778210282,1.1688,3391.6,3390.7,1.363]
[1735778210283,0.29549,3391.1,3390.7,1.363]
[1735778210481,0.29546,3391.5,3391.3,0.29547]
[1735778210780,0.29548,3391.3,3390.8,0.29552]
[1735778210984,0.29547,3391.4,3391.2,0.29548]
[1735778211186,1.1688,3391.6,3390.4,3.94668]
[1735778211484,6.44093093,3392.5,3391.3,3.2078]
[1735778211680,0.29542,3391.9,3391.7,0.29543]
[1735778212186,0.29543,3391.8,3391.7,0.29543]
[1735778212483,0.29546,3391.6,3391.4,3.2078]
[1735778212782,0.29543,3391.9,3391.7,0.29544]
[1735778212982,6.0537068,3392.1,3391.7,0.29544]
[1735778212983,0.29543,3391.8,3391.7,0.29544]
[1735778213183,0.29543,3391.8,3391.2,3.2078]
[1735778213380,6.0537068,3392.1,3391.0,1.363]
[1735778213585,0.29541,3392.0,3391.1,0.73874]
[1735778213785,3.2078,3392.5,3391.6,3.2078]
[1735778214082,3.50317,3392.5,3392.3,0.29539]
[1735778214478,1.39718,3392.4,3391.9,1.363]
[1735778214683,1.1018,3392.4,3391.9,1.363]
[1735778214886,1.1018,3392.4,3392.3,0.29539]
[1735778215281,1.39718,3392.4,3392.3,0.29539]
[1735778215587,1.1018,3392.4,3392.3,0.29539]
[1735778215987,3.2078,3392.5,3392.4,0.29538]
[1735778216188,3.50317,3392.5,3392.0,3.2078]
[1735778216382,0.29538,3392.4,3392.3,0.29539]
[1735778216585,0.29538,3392.4,3392.0,3.2078]
[1735778216885,0.29538,3392.4,3392.2,0.29539]
[1735778217086,0.29538,3392.4,3392.0,3.2078]
[1735778217282,0.2954,3392.2,3392.0,0.29541]
[1735778217681,0.2954,3392.2,3392.1,0.29541]
[1735778217884,0.29544,3391.7,3391.6,3.2078]
[1735778218079,3.2078,3391.7,3391.5,0.29545]
[1735778218278,0.29542,3392.0,3391.7,0.29544]
[1735778218479,3.2078,3392.3,3391.2,3.2078]
[1735778218480,2.8459068,3391.8,3391.2,3.2078]
[1735778218882,0.29546,3391.5,3391.4,0.29546]
[1735778219081,2.8459068,3391.8,3391.7,0.29544]
[1735778219288,2.8459068,3391.8,3391.2,3.2078]
[1735778219289,1.1468,3391.9,3391.8,0.29543]
[1735778219483,3.2078,3392.3,3392.2,0.2954]
[1735778220487,3.2078,3392.3,3392.0,1.363]
[1735778220684,0.29543,3391.9,3391.7,0.29544]
[1735778220984,2.8459068,3392.2,3391.3,6.266]
[1735778221182,3.2078,3392.3,3392.2,0.2954]
[1735778221385,1.1867,3392.7,3392.0,3.2078]
[1735778221581,1.1867,3392.7,3392.6,0.29536]
[1735778221786,3.2078,3392.8,3392.7,0.29535]
[1735778222184,3.2078,3392.8,3392.2,1.477]
[1735778222185,2.8459068,3393.8,3392.4,3.2078]
[1735778222490,1.1496,3394.2,3394.1,0.29523]
[1735778222813,1.1496,3394.2,3393.5,3.94601]
[1735778222814,3.2078,3394.5,3393.7,2.11816]
[1735778223092,3.2078,3394.5,3394.4,0.2952]
[1735778223295,1.1761,3394.8,3394.1,3.2078]
[1735778223497,0.29524,3394.1,3393.8,0.29526]
[1735778223686,0.29524,3394.1,3393.7,3.2078]
[1735778223687,0.29524,3394.0,3393.7,3.50306]
[1735778223884,2.8459068,3394.2,3393.8,0.29525]
[1735778224098,2.8459068,3394.2,3393.7,3.2078]
[1735778224291,2.8459068,3393.8,3393.2,3.2078]
[1735778224481,2.8459068,3393.8,3392.8,4.5878]
[1735778224795,0.73806,3394.2,3392.8,4.5878]
[1735778224796,2.8459068,3393.4,3392.8,4.5878]
[1735778224981,3.2078,3393.3,3392.8,1.38]
[1735778225184,2.8459068,3393.0,3392.3,3.2078]
[1735778225381,0.29531,3393.2,3392.9,0.29533]
[1735778225583,2.8459068,3393.4,3392.3,3.2078]
[1735778225783,3.1411968,3393.4,3393.1,0.29531]
[1735778225990,2.8459068,3393.4,3392.3,3.2078]
[1735778226596,2.8459068,3393.4,3393.2,0.2953]
[1735778226795,2.8459068,3393.4,3392.3,3.2078]
[1735778226990,2.26,3393.6,3393.3,0.2953]
[1735778227291,0.73803,3394.4,3393.8,0.29525]
[1735778227292,2.8459068,3394.3,3393.8,0.29525]
[1735778227488,2.8459068,3394.3,3393.2,1.379]
[1735778227795,2.8459068,3394.3,3393.5,3.2078]
[1735778228097,2.8459068,3394.3,3393.2,1.379]
[1735778228294,2.8459068,3394.3,3393.5,3.2078]
[1735778229099,0.29524,3394.1,3393.8,0.29525]
[1735778229296,0.29524,3394.1,3393.5,3.2078]
[1735778229297,2.8459068,3394.3,3394.2,0.29522]
[1735778229592,3.2078,3394.5,3393.5,3.2078]
[1735778229800,0.29524,3394.1,3393.5,3.2078]
[1735778229992,0.29523,3394.2,3394.0,0.29524]
[1735778230198,3.2078,3394.5,3393.5,3.2078]
[1735778230394,3.9251068,3394.7,3394.6,0.29519]
[1735778230395,1.0792,3394.7,3394.6,0.29519]
[1735778230592,8.31989223,3394.8,3394.7,0.29518]